fUSD/lending_fUSD_20260126
["ID","MTS","AMOUNT","RATE_DAILY","PERIOD"]
[403627686,1769429446942,-1731.180932,0.00017999,2]
[403627687,1769429446951,-155.579114,0.00017999,2]
[403627688,1769429446961,-151.0,0.00017999,2]
[403627689,1769429446970,-1731.180932,0.00017999,2]
[403627690,1769429446979,-181.606451,0.00017999,2]
[403627691,1769429446988,-1275.241481,0.00017999,2]
[403627692,1769429446997,-155.579114,0.00017999,2]
[403627693,1769429447007,-91334.52703404,0.00018,2]
[403627694,1769429447015,-60639.47382936,0.00018,2]
[403627695,1769429447025,-1881642.36537377,0.00018,2]
[403627696,1769429447660,-1186.5106101,0.00018,2]
[403627697,1769429448077,-823.322581,0.00017999,2]
[403627698,1769429448087,-181.606451,0.00017999,2]
[403627699,1769429448097,-1275.241481,0.00017999,2]
[403627700,1769429448107,-155.579114,0.00017999,2]
[403627701,1769429448122,-15350.08808118,0.00018,2]
[403627702,1769429448135,-695.28,0.00018,2]
[403627703,1769429448211,-1662.19467575,0.00018,2]
[403627704,1769429448240,-10511.73340072,0.00018,2]
[403627705,1769429448253,-584.42386466,0.00018,2]
[403627706,1769429448594,-5537.36,0.0001743,2]
[403627707,1769429448607,-7675.40445028,0.0001743,2]
[403627708,1769429448617,-823.322581,0.00017999,2]
[403627709,1769429448626,-155.579114,0.00017999,2]
[403627710,1769429448635,-1275.241481,0.00017999,2]
[403627711,1769429448647,-138.1023034,0.00018,2]
[403627712,1769429448660,-735688.14001546,0.00018,2]
[403627713,1769429448670,-104414.45105717,0.00018,2]
[403627714,1769429448680,-700506.96746833,0.00018,2]
[403627715,1769429448690,-145672.66161217,0.00018,2]
[403627716,1769429448701,-285749.1924926,0.00018,2]
[403627717,1769429448710,-1354190.1515588,0.00018,2]
[403627718,1769429448721,-148566.63375536,0.00018,2]
[403627719,1769429448731,-1511.36196885,0.00018,2]
[403627720,1769429448742,-551743.15450863,0.00018,2]
[403627721,1769429448755,-7677.89614001,0.00018,2]
[403627722,1769429448788,-259913.66570394,0.00018,2]
[403627723,1769429448801,-50166.87029231,0.00018,2]
[403627724,1769429448821,-378.66,0.00018,2]
[403627725,1769429448844,-472.96703519,0.00018,2]
[403627726,1769429448893,-328.36626858,0.00017999,2]
[403627727,1769429449992,-494.95631242,0.00017999,2]
[403627728,1769429450003,-1275.241481,0.00017999,2]
[403627729,1769429450013,-823.322581,0.00017999,2]
[403627730,1769429450023,-456.080808,0.00017999,2]
[403627731,1769429450032,-14054.72032758,0.00018,2]
[403627732,1769429450044,-22208.64123285,0.00018,2]
[403627733,1769429450075,-20.16217907,0.00018,2]
[403627794,1769430517017,5674.66177299,0.0001,2]
[403627815,1769430631995,-504.61384517,0.00011773,2]
[403627816,1769430632007,-722.07071166,0.000129,2]
[403627817,1769430632016,-3980.83,0.00013236,2]
[403627818,1769430632026,-1905.55603234,0.000139,2]
[403627819,1769430632035,-3361.62671382,0.000139,2]
[403627820,1769430632045,-5028.79251819,0.000139,2]
[403627821,1769430632055,-6804.1314,0.000139,2]
[403627822,1769430632064,-300.0,0.00013989,2]
[403627823,1769430632073,-300.0,0.00013989,2]
[403627824,1769430632083,-1200.0,0.00013989,2]
[403627825,1769430632092,-300.0,0.00013989,2]
[403627826,1769430632101,-3130.34925324,0.0001399,2]
[403627827,1769430632113,-2579.13591099,0.0001399,2]
[403627828,1769430632122,-426.68,0.00015016,2]
[403627829,1769430632132,-400.78155087,0.00015138,2]
[403627830,1769430632143,-1051.85347491,0.00015138,2]
[403627831,1769430632153,-460.0,0.00015206,2]
[403627832,1769430632163,-151.0,0.00015212,2]
[403627833,1769430632172,-186.28143655,0.00015214,2]
[403627834,1769430632184,-113.71856345,0.00015214,2]
[403627835,1769430632193,-4273.95496039,0.00015215,2]
[403627836,1769430632209,-1432.6153019,0.00015215,2]
[403627837,1769430632221,-254748.76774047,0.00015215,2]
[403627838,1769430632233,-590.20062203,0.00015215,2]
[403627839,1769430636767,-738954.46137521,0.00015215,2]
[403627840,1769430636776,-869.0,0.00015238,2]
[403627841,1769430636785,-1255.08479104,0.000153,2]
[403627842,1769430636795,-503.61948635,0.00015306,2]
[403627843,1769430636804,-6377.28,0.00015308,2]
[403627844,1769430636813,-11935.6015,0.00015315,2]
[403627845,1769430636822,-1000.0,0.00015326,2]
[403627847,1769430636831,-1680.0,0.00015388,2]
[403627849,1769430636840,-538.40195499,0.00015414,2]
[403627851,1769430636849,-500.0,0.00015414,2]
[403627853,1769430636858,-500.0,0.00015414,2]
[403627855,1769430636868,-500.0,0.00015414,2]
[403627857,1769430636877,-465.39231192,0.00015414,2]
[403627859,1769430636886,-500.0,0.00015414,2]
[403627862,1769430636896,-500.0,0.00015414,2]
[403627864,1769430636905,-500.0,0.00015414,2]
[403627865,1769430636914,-214.92638716,0.00015414,2]
[403627868,1769430636931,-500.0,0.00015414,2]
[403627870,1769430636949,-500.0,0.00015414,2]
[403627872,1769430636957,-500.0,0.00015414,2]
[403627874,1769430636967,-500.0,0.00015414,2]
[403627876,1769430636976,-500.0,0.00015414,2]
[403627878,1769430636985,-500.0,0.00015414,2]
[403627880,1769430636995,-500.0,0.00015414,2]
[403627882,1769430637004,-645.21507444,0.00015414,2]
[403627884,1769430637013,-1224.66,0.00015414,2]
[403627886,1769430637022,-1452.63502573,0.00015533,2]
[403627888,1769430637031,-359.96,0.00015534,2]
[403627890,1769430637040,-1224.66,0.00015688,2]
[403627892,1769430637048,-3262.7398863,0.00015714,2]
[403627893,1769430637057,-152.11,0.00015913,2]
[403627896,1769430637070,-1452.63502573,0.00015927,2]
[403627897,1769430637079,-152.11,0.00015945,2]
[403627898,1769430637088,-1224.66,0.00015962,2]
[403627899,1769430637097,-152.11,0.00015976,2]
[403627900,1769430637106,-48956.72372826,0.00016,4]
[403627901,1769430637115,-152.11,0.00016008,2]
[403627902,1769430637125,-152.11,0.0001604,2]
[403627903,1769430637134,-152.11,0.00016072,2]
[403627904,1769430637143,-152.11,0.00016104,2]
[403627905,1769430637153,-152.11,0.00016136,2]
[403627906,1769430637162,-152.11,0.00016167,2]
[403627907,1769430637173,-152.11,0.00016199,2]
[403627908,1769430637183,-5818.08928731,0.000162,5]
[403627909,1769430637192,-152.11,0.00016231,2]
[403627910,1769430637201,-1224.66,0.00016236,2]
[403627911,1769430637210,-152.11,0.00016263,2]
[403627912,1769430637220,-152.11,0.00016295,2]
[403627913,1769430637229,-1452.63502573,0.00016322,2]
[403627914,1769430637240,-152.11,0.00016327,2]
[403627915,1769430637250,-510.0,0.0001634,2]
[403627916,1769430637260,-336.78562609,0.00016347,2]
[403627917,1769430637269,-300.0,0.00016356,2]
[403627918,1769430637278,-1289.73,0.00016356,2]
[403627919,1769430637288,-172.23,0.00016356,2]
[403627920,1769430637297,-176.73,0.00016356,2]
[403627921,1769430637307,-152.11,0.00016358,2]
[403627922,1769430637317,-558.94,0.00016378,2]
[403627923,1769430637328,-152.11,0.0001639,2]
[403627924,1769430637337,-2439.18205265,0.00016399,2]
[403627925,1769430637347,-1086.0,0.000164,2]
[403627926,1769430637356,-1086.0,0.000164,2]
[403627927,1769430637365,-437.87358604,0.00016437,2]
[403627928,1769430637375,-500.0,0.00016437,2]
[403627929,1769430637384,-500.0,0.00016437,2]
[403627930,1769430637394,-500.0,0.00016437,2]
[403627931,1769430637403,-500.0,0.00016437,2]
[403627932,1769430637413,-635.75901241,0.00016437,2]
[403627933,1769430637422,-500.0,0.00016437,2]
[403627934,1769430637431,-500.0,0.00016437,2]
[403627935,1769430637441,-500.0,0.00016437,2]
[403627936,1769430637450,-500.0,0.00016437,2]
[403627937,1769430637460,-500.0,0.00016437,2]
[403627938,1769430637469,-500.0,0.00016437,2]
[403627939,1769430637478,-500.0,0.00016437,2]
[403627940,1769430637487,-500.0,0.00016437,2]
[403627941,1769430637497,-500.0,0.00016438,2]
[403627942,1769430637506,-500.0,0.00016438,2]
[403627943,1769430637516,-449.16526212,0.00016438,2]
[403627944,1769430637525,-585.98269433,0.00016438,2]
[403627945,1769430637535,-585.98269433,0.00016438,2]
[403627946,1769430637544,-585.98269433,0.00016438,2]
[403627947,1769430637553,-585.98269433,0.00016438,2]
[403627948,1769430637562,-585.98269433,0.00016438,2]
[403627949,1769430637571,-585.98269433,0.00016438,2]
[403627950,1769430637580,-585.98269433,0.00016438,2]
[403627951,1769430637589,-585.98269433,0.00016438,2]
[403627952,1769430637598,-585.98269433,0.00016438,2]
[403627953,1769430637607,-585.98269433,0.00016438,2]
[403627954,1769430637617,-585.98269433,0.00016438,2]
[403627955,1769430637626,-585.98269433,0.00016438,2]
[403627956,1769430637636,-585.98269433,0.00016438,2]
[403627957,1769430637644,-585.98269433,0.00016438,2]
[403627958,1769430637653,-585.98269433,0.00016438,2]
[403627959,1769430637663,-585.98269433,0.00016438,2]
[403627960,1769430637672,-585.98269433,0.00016438,2]
[403627961,1769430637681,-585.98269433,0.00016438,2]
[403627962,1769430637690,-585.98269433,0.00016438,2]
[403627963,1769430637700,-585.98269433,0.00016438,2]
[403627964,1769430637710,-585.98269433,0.00016438,2]
[403627965,1769430637720,-585.98269433,0.00016438,2]
[403627966,1769430637729,-585.98269433,0.00016438,2]
[403627967,1769430637738,-585.98269433,0.00016438,2]
[403627968,1769430637747,-585.98269433,0.00016438,2]
[403627969,1769430637756,-585.98269433,0.00016438,2]
[403627970,1769430637766,-585.98269433,0.00016438,2]
[403627971,1769430637775,-585.98269433,0.00016438,2]
[403627972,1769430637784,-585.98269433,0.00016438,2]
[403627973,1769430637794,-585.98269433,0.00016438,2]
[403627975,1769430637803,-585.98269433,0.00016438,2]
[403627976,1769430637812,-585.98269433,0.00016438,2]
[403627981,1769430638135,-585.98269433,0.00016438,2]
[403627982,1769430638145,-585.98269433,0.00016438,2]
[403627983,1769430638155,-585.98269433,0.00016438,2]
[403627984,1769430638164,-585.98269433,0.00016438,2]
[403627985,1769430638174,-585.98269433,0.00016438,2]
[403627986,1769430638183,-585.98269433,0.00016438,2]
[403627987,1769430638193,-585.98269433,0.00016438,2]
[403627988,1769430638203,-585.98269433,0.00016438,2]
[403627989,1769430638213,-585.98269433,0.00016438,2]
[403627990,1769430638223,-585.98269433,0.00016438,2]
[403627991,1769430638233,-585.98269433,0.00016438,2]
[403627992,1769430638242,-585.98269433,0.00016438,2]
[403627993,1769430638252,-585.98269433,0.00016438,2]
[403627994,1769430638262,-585.98269433,0.00016438,2]
[403627995,1769430638271,-585.98269433,0.00016438,2]
[403627996,1769430638281,-585.98269433,0.00016438,2]
[403627997,1769430638291,-585.98269433,0.00016438,2]
[403627998,1769430638300,-585.98269433,0.00016438,2]
[403627999,1769430638310,-585.98269433,0.00016438,2]
[403628000,1769430638319,-585.98269433,0.00016438,2]
[403628001,1769430638328,-585.98269433,0.00016438,2]
[403628002,1769430638338,-585.98269433,0.00016438,2]
[403628003,1769430638348,-585.98269433,0.00016438,2]
[403628004,1769430638357,-585.98269433,0.00016438,2]
[403628006,1769430638367,-2872.7024548,0.00016438,2]
[403628008,1769430638376,-2872.7024548,0.00016438,2]
[403628010,1769430638385,-2872.7024548,0.00016438,2]
[403628012,1769430638394,-2872.7024548,0.00016438,2]
[403628014,1769430638403,-2872.7024548,0.00016438,2]
[403628016,1769430638413,-2872.7024548,0.00016438,2]
[403628018,1769430638422,-2872.7024548,0.00016438,2]
[403628020,1769430638432,-2872.7024548,0.00016438,2]
[403628022,1769430638441,-2872.7024548,0.00016438,2]
[403628023,1769430638451,-2872.7024548,0.00016438,2]
[403628025,1769430638460,-2872.7024548,0.00016438,2]
[403628028,1769430638470,-2872.7024548,0.00016438,2]
[403628030,1769430638483,-2872.7024548,0.00016438,2]
[403628032,1769430638492,-2872.7024548,0.00016438,2]
[403628034,1769430638501,-2872.7024548,0.00016438,2]
[403628036,1769430638510,-2872.7024548,0.00016438,2]
[403628038,1769430638519,-2872.7024548,0.00016438,2]
[403628040,1769430638528,-2872.7024548,0.00016438,2]
[403628042,1769430638537,-2872.7024548,0.00016438,2]
[403628044,1769430638546,-2872.7024548,0.00016438,2]
[403628046,1769430638555,-2872.7024548,0.00016438,2]
[403628048,1769430638565,-2872.7024548,0.00016438,2]
[403628050,1769430638575,-2872.7024548,0.00016438,2]
[403628052,1769430638584,-2872.7024548,0.00016438,2]
[403628054,1769430638593,-2872.7024548,0.00016438,2]
[403628056,1769430638603,-2872.7024548,0.00016438,2]
[403628058,1769430638612,-2872.7024548,0.00016438,2]
[403628060,1769430638621,-2872.7024548,0.00016438,2]
[403628062,1769430638631,-2872.7024548,0.00016438,2]
[403628064,1769430638640,-2872.7024548,0.00016438,2]
[403628066,1769430638649,-2872.7024548,0.00016438,2]
[403628068,1769430638659,-2872.7024548,0.00016438,2]
[403628070,1769430638668,-2872.7024548,0.00016438,2]
[403628072,1769430638677,-2872.7024548,0.00016438,2]
[403628074,1769430638686,-227.03,0.00016438,2]
[403628076,1769430638696,-716.05394117,0.00016438,2]
[403628078,1769430638705,-352.25013528,0.00016438,2]
[403628080,1769430638714,-165.3,0.0001644,2]
[403628082,1769430638723,-1224.01726065,0.00016444,2]
[403628084,1769430638732,-241.55010702,0.00016499,2]
[403628086,1769430638741,-500.0,0.00016499,2]
[403628088,1769430638750,-206.21831663,0.00016499,2]
[403628090,1769430638759,-155.7524444,0.00016499,2]
[403628092,1769430638768,-11130.69076846,0.000165,2]
[403628094,1769430638778,-1224.66,0.0001651,2]
[403628096,1769430638787,-2439.18205259,0.00016566,2]
[403628098,1769430638797,-1117.88,0.00016685,2]
[403628100,1769430638806,-165.88,0.00016712,2]
[403628102,1769430638814,-1452.63502573,0.00016716,2]
[403628104,1769430638823,-500.0,0.00016727,2]
[403628106,1769430638832,-2439.18205259,0.00016733,2]
[403628108,1769430638841,-636.49599205,0.0001675,2]
[403628110,1769430638851,-1224.66,0.00016784,2]
[403628112,1769430638860,-250.7905905,0.00016884,2]
[403628114,1769430638870,-500.0,0.00016884,2]
[403628116,1769430638879,-500.0,0.00016884,2]
[403628118,1769430638888,-228.42973345,0.00016884,2]
[403628120,1769430638897,-500.0,0.00016884,2]
[403628122,1769430638906,-500.0,0.00016884,2]
[403628124,1769430638915,-301.03665033,0.00016884,2]
[403628126,1769430638927,-500.0,0.00016884,2]
[403628128,1769430638936,-500.0,0.00016884,2]
[403628130,1769430638945,-181.38898729,0.00016884,2]
[403628132,1769430638954,-500.0,0.00016884,2]
[403628134,1769430638965,-500.0,0.00016884,2]
[403628136,1769430638975,-2439.18205259,0.00016899,2]
[403628138,1769430638986,-8399.85644778,0.00016916,2]
[403628140,1769430638995,-1200.0,0.00016927,2]
[403628142,1769430639006,-1544.18,0.00016999,2]
[403628144,1769430639016,-1544.18,0.00016999,2]
[403628146,1769430639025,-1544.18,0.00016999,2]
[403628149,1769430639034,-1544.18,0.00016999,2]
[403628151,1769430639045,-1544.18,0.00016999,2]
[403628153,1769430639055,-1544.18,0.00016999,2]
[403628154,1769430639065,-1544.18,0.00016999,2]
[403628157,1769430639074,-1544.18,0.00016999,2]
[403628158,1769430639083,-1544.18,0.00016999,2]
[403628161,1769430639093,-1544.18,0.00016999,2]
[403628162,1769430639102,-1544.18,0.00016999,2]
[403628165,1769430639112,-1544.18,0.00016999,2]
[403628167,1769430639121,-1544.18,0.00016999,2]
[403628168,1769430639130,-1544.18,0.00016999,2]
[403628170,1769430639140,-1544.18,0.00016999,2]
[403628173,1769430639149,-1544.18,0.00016999,2]
[403628175,1769430639159,-1544.18,0.00016999,2]
[403628177,1769430639168,-1544.18,0.00016999,2]
[403628179,1769430639178,-1544.18,0.00016999,2]
[403628180,1769430639186,-1544.18,0.00016999,2]
[403628183,1769430639196,-1544.18,0.00016999,2]
[403628185,1769430639206,-1544.18,0.00016999,2]
[403628186,1769430639215,-1544.18,0.00016999,2]
[403628188,1769430639224,-1544.25,0.00016999,2]
[403628191,1769430639234,-250.0,0.00017,2]
[403628193,1769430639244,-131161.9361444,0.00017,2]
[403628195,1769430639253,-406.0,0.00017016,2]
[403628197,1769430639262,-8399.85644771,0.00017025,2]
[403628199,1769430639272,-837.0,0.0001704,2]
[403628201,1769430639280,-1086.0,0.0001704,2]
[403628203,1769430639289,-1086.0,0.0001704,2]
[403628205,1769430639299,-1086.0,0.0001704,2]
[403628207,1769430639308,-1086.0,0.0001704,2]
[403628209,1769430639317,-674.06,0.00017041,2]
[403628211,1769430639326,-728.4932939,0.00017049,2]
[403628213,1769430639335,-1224.66,0.00017058,2]
[403628215,1769430639345,-2439.18205259,0.00017066,2]
[403628217,1769430639354,-500.0,0.00017098,2]
[403628219,1769430639364,-500.0,0.00017098,2]
[403628221,1769430639374,-500.0,0.00017098,2]
[403628223,1769430639384,-500.0,0.00017098,2]
[403628224,1769430639393,-500.0,0.00017098,2]
[403628227,1769430639403,-500.0,0.00017098,2]
[403628229,1769430639412,-500.0,0.00017098,2]
[403628231,1769430639421,-500.0,0.00017098,2]
[403628232,1769430639430,-500.0,0.00017098,2]
[403628235,1769430639440,-500.0,0.00017098,2]
[403628236,1769430639451,-500.0,0.00017098,2]
[403628239,1769430639460,-265.38149766,0.00017098,2]
[403628240,1769430639469,-500.0,0.00017098,2]
[403628243,1769430639478,-500.0,0.00017098,2]
[403628244,1769430639487,-500.0,0.00017098,2]
[403628246,1769430639496,-500.0,0.00017098,2]
[403628248,1769430639505,-500.0,0.00017098,2]
[403628250,1769430639514,-500.0,0.00017098,2]
[403628252,1769430639524,-500.0,0.00017098,2]
[403628253,1769430639533,-500.0,0.00017098,2]
[403628254,1769430639543,-500.0,0.00017098,2]
[403628255,1769430639552,-500.0,0.00017098,2]
[403628256,1769430639561,-500.0,0.00017098,2]
[403628257,1769430639570,-500.0,0.00017098,2]
[403628258,1769430639579,-500.0,0.00017098,2]
[403628259,1769430639588,-500.0,0.00017098,2]
[403628260,1769430639598,-500.0,0.00017098,2]
[403628261,1769430639607,-500.0,0.00017098,2]
[403628262,1769430639616,-500.0,0.00017098,2]
[403628263,1769430639626,-164.32676912,0.00017098,2]
[403628264,1769430639635,-500.0,0.00017098,2]
[403628265,1769430639645,-322.6107,0.00017099,2]
[403628266,1769430639655,-151.0,0.00017099,2]
[403628267,1769430639664,-721.12765535,0.00017099,2]
[403628268,1769430639673,-250.0,0.00017099,2]
[403628270,1769430639683,-250.0,0.00017099,2]
[403628271,1769430639691,-250.0,0.00017099,2]
[403628273,1769430639701,-250.0,0.00017099,2]
[403628275,1769430639711,-1000.0,0.00017099,2]
[403628277,1769430639720,-250.0,0.00017099,2]
[403628279,1769430639729,-327.42074596,0.00017099,2]
[403628281,1769430639738,-1000.0,0.00017099,2]
[403628284,1769430639748,-250.0,0.00017099,2]
[403628286,1769430639758,-250.0,0.00017099,2]
[403628288,1769430639767,-1000.0,0.00017099,2]
[403628290,1769430639776,-1000.0,0.00017099,2]
[403628292,1769430639785,-250.0,0.00017099,2]
[403628294,1769430639794,-1000.0,0.00017099,2]
[403628297,1769430639804,-151.0,0.00017099,2]
[403628299,1769430639813,-250.0,0.00017099,2]
[403628301,1769430639822,-1000.0,0.00017099,2]
[403628303,1769430639831,-250.0,0.00017099,2]
[403628305,1769430639840,-1000.0,0.00017099,2]
[403628307,1769430639850,-250.0,0.00017099,2]
[403628309,1769430639859,-1000.0,0.00017099,2]
[403628311,1769430639867,-250.0,0.00017099,2]
[403628313,1769430639877,-1000.0,0.00017099,2]
[403628315,1769430639887,-250.0,0.00017099,2]
[403628317,1769430639897,-1000.0,0.00017099,2]
[403628319,1769430639906,-250.0,0.00017099,2]
[403628321,1769430639915,-1000.0,0.00017099,2]
[403628323,1769430639926,-250.0,0.00017099,2]
[403628325,1769430639937,-250.0,0.00017099,2]
[403628327,1769430639946,-250.0,0.00017099,2]
[403628329,1769430639955,-250.0,0.00017099,2]
[403628331,1769430639964,-250.0,0.00017099,2]
[403628333,1769430639978,-250.0,0.00017099,2]
[403628335,1769430639987,-250.0,0.00017099,2]
[403628337,1769430639997,-250.0,0.00017099,2]
[403628339,1769430640008,-228.2823319,0.00017099,2]
[403628341,1769430640017,-174.61919141,0.00017099,2]
[403628343,1769430640026,-2349.0,0.00017099,2]
[403628345,1769430640035,-250.0,0.00017099,2]
[403628347,1769430640045,-250.0,0.00017099,2]
[403628349,1769430640054,-250.0,0.00017099,2]
[403628351,1769430640064,-250.0,0.00017099,2]
[403628354,1769430640074,-250.0,0.00017099,2]
[403628356,1769430640084,-250.0,0.00017099,2]
[403628358,1769430640094,-854.2589148,0.00017099,2]
[403628360,1769430640103,-250.0,0.00017099,2]
[403628362,1769430640112,-250.0,0.00017099,2]
[403628363,1769430640121,-250.0,0.00017099,2]
[403628364,1769430640130,-250.0,0.00017099,2]
[403628365,1769430640140,-250.0,0.00017099,2]
[403628366,1769430640149,-3000.0,0.00017099,2]
[403628367,1769430640158,-3000.0,0.00017099,2]
[403628368,1769430640168,-3000.0,0.00017099,2]
[403628369,1769430640177,-3000.0,0.00017099,2]
[403628370,1769430640186,-250.0,0.00017099,2]
[403628371,1769430640196,-3000.0,0.00017099,2]
[403628372,1769430640205,-250.0,0.00017099,2]
[403628373,1769430640215,-3000.0,0.00017099,2]
[403628374,1769430640224,-250.0,0.00017099,2]
[403628375,1769430640233,-3000.0,0.00017099,2]
[403628377,1769430640243,-250.0,0.00017099,2]
[403628378,1769430640251,-3000.0,0.00017099,2]
[403628380,1769430640260,-250.0,0.00017099,2]
[403628381,1769430640270,-3000.0,0.00017099,2]
[403628382,1769430640279,-250.0,0.00017099,2]
[403628383,1769430640289,-3000.0,0.00017099,2]
[403628384,1769430640297,-250.0,0.00017099,2]
[403628385,1769430640307,-250.0,0.00017099,2]
[403628386,1769430640316,-250.0,0.00017099,2]
[403628387,1769430640325,-250.0,0.00017099,2]
[403628388,1769430640334,-250.0,0.00017099,2]
[403628389,1769430640344,-2500.0,0.00017099,2]
[403628390,1769430640353,-2500.0,0.00017099,2]
[403628391,1769430640363,-2500.0,0.00017099,2]
[403628392,1769430640372,-2500.0,0.00017099,2]
[403628393,1769430640381,-2500.0,0.00017099,2]
[403628394,1769430640390,-2500.0,0.00017099,2]
[403628395,1769430640399,-359.76179104,0.00017099,2]
[403628396,1769430640409,-2500.0,0.00017099,2]
[403628397,1769430640418,-2500.0,0.00017099,2]
[403628398,1769430640427,-2500.0,0.00017099,2]
[403628399,1769430640436,-2500.0,0.00017099,2]
[403628400,1769430640446,-936.57857519,0.00017099,2]
[403628401,1769430640455,-250.0,0.00017099,2]
[403628402,1769430640465,-250.0,0.00017099,2]
[403628403,1769430640474,-250.0,0.00017099,2]
[403628404,1769430640483,-500.0,0.00017099,2]
[403628405,1769430640492,-250.0,0.00017099,2]
[403628406,1769430640501,-500.0,0.00017099,2]
[403628407,1769430640510,-250.0,0.00017099,2]
[403628408,1769430640519,-500.0,0.00017099,2]
[403628409,1769430640529,-500.0,0.00017099,2]
[403628410,1769430640538,-250.0,0.00017099,2]
[403628411,1769430640548,-500.0,0.00017099,2]
[403628412,1769430640557,-250.0,0.00017099,2]
[403628413,1769430640566,-500.0,0.00017099,2]
[403628414,1769430640575,-250.0,0.00017099,2]
[403628415,1769430640584,-500.0,0.00017099,2]
[403628416,1769430640594,-250.0,0.00017099,2]
[403628417,1769430640603,-500.0,0.00017099,2]
[403628418,1769430640612,-250.0,0.00017099,2]
[403628419,1769430640622,-500.0,0.00017099,2]
[403628420,1769430640631,-250.0,0.00017099,2]
[403628421,1769430640640,-500.0,0.00017099,2]
[403628422,1769430640650,-500.0,0.00017099,2]
[403628423,1769430640659,-578.20924308,0.00017099,2]
[403628424,1769430640669,-250.0,0.00017099,2]
[403628425,1769430640678,-250.0,0.00017099,2]
[403628426,1769430640688,-250.0,0.00017099,2]
[403628427,1769430640698,-250.0,0.00017099,2]
[403628428,1769430640707,-250.0,0.00017099,2]
[403628429,1769430640717,-250.0,0.00017099,2]
[403628430,1769430640727,-250.0,0.00017099,2]
[403628431,1769430640736,-250.0,0.00017099,2]
[403628432,1769430640745,-250.0,0.00017099,2]
[403628433,1769430640754,-250.0,0.00017099,2]
[403628434,1769430640763,-250.0,0.00017099,2]
[403628435,1769430640773,-406.0,0.00017105,2]
[403628436,1769430640782,-209.0,0.00017127,2]
[403628437,1769430640792,-8399.85644771,0.00017135,2]
[403628438,1769430640801,-1129.01,0.00017178,2]
[403628439,1769430640810,-406.0,0.00017195,2]
[403628440,1769430640820,-2439.18205259,0.00017233,2]
[403628441,1769430640829,-1000.0,0.00017242,2]
[403628442,1769430640838,-8399.85644771,0.00017244,2]
[403628443,1769430640847,-158.77275078,0.00017254,2]
[403628445,1769430640856,-1000.0,0.0001726,2]
[403628446,1769430640865,-406.0,0.00017284,2]
[403628447,1769430640874,-171.39925445,0.00017324,2]
[403628448,1769430640883,-191.58956319,0.00017324,2]
[403628449,1769430640892,-1224.67640756,0.00017332,2]
[403628450,1769430640901,-8399.85644771,0.00017353,2]
[403628451,1769430640910,-1086.0,0.0001736,2]
[403628452,1769430640919,-1086.0,0.0001736,2]
[403628453,1769430640935,-836.0,0.0001736,2]
[403628454,1769430640946,-1086.0,0.0001736,2]
[403628455,1769430640955,-1086.0,0.0001736,2]
[403628456,1769430640965,-1086.0,0.0001736,2]
[403628457,1769430640975,-406.0,0.00017374,2]
[403628458,1769430640984,-2439.18205259,0.000174,2]
[403628459,1769430640993,-152.21,0.000174,2]
[403628460,1769430641003,-152.21,0.000174,2]
[403628461,1769430641012,-152.21,0.000174,2]
[403628462,1769430641021,-152.21,0.000174,2]
[403628463,1769430641030,-152.21,0.000174,2]
[403628464,1769430641039,-534.26205379,0.00017422,2]
[403628465,1769430641048,-632.75172605,0.00017423,2]
[403628466,1769430641057,-300.0,0.00017423,2]
[403628467,1769430641066,-300.0,0.00017423,2]
[403628468,1769430641074,-300.0,0.00017423,2]
[403628469,1769430641083,-300.0,0.00017423,2]
[403628470,1769430641093,-300.0,0.00017423,2]
[403628471,1769430641102,-300.0,0.00017423,2]